Cogmind - Beta 10 @@@ ROGUE MODE // 2020.09.16 @ 22:30:46 Player: stibbons Result: Destroyed by S-10 Pest with Light Assault Rifle Performance ------------- Evolutions (0) 0 Regions Visited (1) 200 Robots Destroyed (9) 45 Value Destroyed (190) 190 Prototype IDs (0) 0 Alien Tech Used (0) 0 Bonus (0) 0 TOTAL SCORE: 435 Bonus ------- None Cogmind --------- Core Integrity 0/250 Matter 295/300 Energy 247/265 System Corruption 3% Temperature Cool (26) Movement Walking (150) Ox1 Location -10/Materials Parts ------- > --- POWER (1) -------- Improved Ion Engine > --- PROPULSION (2) --- Aluminum Leg > --- UTILITY (2) ------ (None) > --- WEAPON (2) ------- Particle Cannon Particle Cannon > --- INVENTORY (4) ---- Improved Ion Engine Aluminum Leg Particle Cannon Datajack Peak State ------------ > --- POWER ------------ Improved Ion Engine > --- PROPULSION ------- Aluminum Leg > --- UTILITY ---------- (None) > --- WEAPON ----------- Particle Cannon Particle Cannon > --- INVENTORY -------- Improved Ion Engine Particle Cannon Datajack [Rating: 7] Favorites ----------- Power Improved Ion Engine Engine Improved Ion Engine Propulsion Light Treads Treads Light Treads Leg Aluminum Leg Utility Weight Redist. System Device Weight Redist. System Weapon Particle Cannon Energy Cannon Particle Cannon Special Melee Weapon Datajack Build | -11 -10 ------- Run | Scr Mat Slots Evolved . | . . Power . | . . Propulsion . | . . Utility . | . . Weapon . | . . Parts Attached 9 | . 9 Power 1 | . 1 Engine 1 | . 1 Core . | . . Reactor . | . . Propulsion 3 | . 3 Treads 2 | . 2 Leg 1 | . 1 Wheel . | . . Hover . | . . Flight . | . . Utility 1 | . 1 Device 1 | . 1 Storage . | . . Processor . | . . Hackware . | . . Protection . | . . Artifact . | . . Weapon 4 | . 4 Energy Gun . | . . Energy Cannon 3 | . 3 Ballistic Gun . | . . Ballistic Cannon . | . . Launcher . | . . Special Weapon . | . . Impact Weapon . | . . Slashing Weapon . | . . Piercing Weapon . | . . Special Melee Weapon 1 | . 1 Unidentified Prototypes . | . . Parts Lost 4 | . 4 Power . | . . Propulsion 2 | . 2 Utility 1 | . 1 Weapon 1 | . 1 Highest Loss Streak 4 | . 4 Average Slot Usage (%) 36 | . 36 Engine 2 | . 2 Treads 12 | . 12 Leg 1 | . 1 Device 5 | . 5 Energy Cannon 8 | . 8 Special Melee Weapon 5 | . 5 Naked Turns 80 | . 80 Heaviest Build 15 | . 15 Greatest Support 46 | 3 46 Greatest Overweight (x) 4 | . 4 Average Overweight (x) . | . . Largest Inventory Capacity 4 | 4 4 Average Capacity 4 | 4 4 Most Carried 4 | . 4 Average Carried . | . . Final Capacity 4 | 4 4 Final Carried 4 | . 4 Class Distribution -------------------- 100% | Mutant Dominant Class ---------------- Mutant | -10/Materials Resources | -11 -10 ----------- Run | Scr Mat Matter Collected 284 | 200 84 Remotely . | . . Salvage Created 355 | . 355 Parts 21 | . 21 Haulers Intercepted 1 | . 1 Recyclers Shooed 1 | . 1 Parts Field Recycled . | . . Retrieved Matter . | . . Parts Self-Destructed . | . . Prevented . | . . Kills | -11 -10 ------- Run | Scr Mat Combat Hostiles Destroyed 6 | . 6 Melee 2 | . 2 Cannons 4 | . 4 Classes Destroyed 5 | . 5 Worker 1 | . 1 Tunneler 1 | . 1 Hauler 1 | . 1 Swarmer 1 | . 1 Grunt 5 | . 5 Best Kill Streak 2 | . 2 Combat Bots Only 2 | . 2 Max Kills in Single Turn 1 | . 1 Gunslinging . | . . Exploded . | . . Melee 1 | . 1 Uniques/NPCs Destroyed . | . . Combat | -11 -10 -------- Run | Scr Mat Damage Taken 700 | . 700 Core 257 | . 257 Absorbed by Shields . | . . Core Remaining (%) 100 | 100 . Volleys Fired 13 | . 13 Largest 2 | . 2 Hottest 136 | . 136 Shots Fired 19 | . 19 Gun . | . . Cannon 19 | . 19 Launcher . | . . Special . | . . Kinetic . | . . Thermal 19 | . 19 Explosive . | . . Electromagnetic . | . . Robot Hit Streak 4 | . 4 Robot Miss Streak 2 | . 2 Penetration Max . | . . Secondary Targets . | . . Shots Hit Robots 10 | . 10 Core Hits 23 | . 23 Critical Hits . | . . Critical Kills . | . . Critical Parts Destroyed . | . . Melee Attacks . | . . Impact . | . . Slashing . | . . Piercing . | . . Sneak Attacks . | . . Combat Hostiles . | . . Follow-up Attacks . | . . Damage Inflicted 362 | . 362 Guns . | . . Cannons 203 | . 203 Explosions . | . . Melee . | . . Ramming 159 | . 159 Kinetic . | . . Thermal 203 | . 203 Explosive . | . . Electromagnetic . | . . Impact . | . . Slashing . | . . Piercing . | . . Highest Corruption 3 | . 3 Average Corruption 2 | . 2 Corruption Purged . | . . Effects 5 | . 5 Message Errors 1 | . 1 Matter Fused 2 | . 2 Energy Discharges 1 | . 1 Targeting Errors 1 | . 1 Overload Shots . | . . Overflow Damage . | . . Projectiles . | . . Explosions . | . . Melee . | . . Knockbacks . | . . Impact . | . . Kinetic . | . . Secondary . | . . Self-Inflicted Damage 68 | . 68 Shots . | . . Rammed 46 | . 46 Targets Rammed 46 | . 46 Kicked . | . . Crushed . | . . Highest Temperature 234 | . 234 Average Temperature 94 | . 94 Received Heat Transfer 306 | . 306 Siege Activations . | . . Robots Corrupted . | . . Combat Hostiles . | . . Parts Fried . | . . Impact Corruptions . | . . Robots Melted . | . . Combat Hostiles . | . . Parts Melted . | . . Heat Transferred 370 | . 370 Parts Sabotaged . | . . Parts Stolen . | . . Parts Stripped . | . . Power Chain Reactions . | . . Missiles Intercepted . | . . Alert | -11 -10 ------- Run | Scr Mat Peak Influence 152 | . 152 Initial . | . . Average 56 | . 59 Maximum Alert Level . | . . Low Security (%) 100 | 100 100 Level 1 . | . . Level 2 . | . . Level 3 . | . . Level 4 . | . . Level 5 . | . . High Security . | . . Max Security . | . . Squads Dispatched 1 | . 1 Investigation . | . . Extermination . | . . Reinforcement 1 | . 1 Assault . | . . Garrison . | . . Intercept . | . . Construction Impeded . | . . Haulers Reinforced . | . . Stealth | -11 -10 --------- Run | Scr Mat Distress Signals 2 | . 2 Communications Jammed . | . . Distress Signals . | . . Times Spotted 13 | . 13 Peak Tracking Total 4 | . 4 Tactical Retreats . | . . Traps | -11 -10 ------- Run | Scr Mat Traps Triggered . | . . Indirectly . | . . Trap Hack Attempts . | . . Triggered . | . . Disarmed . | . . Reprogrammed . | . . Reused . | . . Traps Extracted . | . . Installed . | . . Triggered . | . . Machines | -11 -10 ---------- Run | Scr Mat Machines Disabled . | . . Max in Single Turn . | . . Machines Sabotaged . | . . Garrisons Compromised . | . . Overloaded Fab Kills . | . . Fab Network Shutdowns . | . . Hacking | -11 -10 --------- Run | Scr Mat Machines Accessed . | . . Terminals . | . . Fabricators . | . . Repair Stations . | . . Recycling Units . | . . Scanalyzers . | . . Garrison Access . | . . Total Hacks . | . . Successful . | . . Failed . | . . Catastrophic . | . . Database Lockouts . | . . Manual . | . . Terminals . | . . Fabricators . | . . Repair Stations . | . . Recycling Units . | . . Scanalyzers . | . . Garrison Access . | . . Terminal Hacks . | . . Fabricator Hacks . | . . Repair Station Hacks . | . . Recycling Unit Hacks . | . . Scanalyzer . | . . Garrison Access Hacks . | . . Unauthorized Hacks . | . . Terminals . | . . Fabricators . | . . Repair Stations . | . . Recycling Units . | . . Scanalyzers . | . . Garrison Access . | . . Data Cores Recovered . | . . Used . | . . Hacking Detections . | . . Full Trace Events . | . . Feedback Events . | . . Feedback Blocked . | . . Robot Schematics Acquired . | . . Robots Built . | . . Matter . | . . Time . | . . Total Robot Build Rating . | . . Part Schematics Acquired . | . . Parts Built . | . . Matter . | . . Time . | . . Total Part Build Rating . | . . Parts Repaired . | . . Time . | . . Parts Recycled . | . . Recycled Matter . | . . Retrieved Matter . | . . Retrieved Components . | . . Parts Scanalyzed . | . . Part Schematics Acquired . | . . Parts Damaged . | . . Bothacking | -11 -10 ------------ Run | Scr Mat Used RIF Installer . | . . Robots Hacked . | . . Non-combat . | . . Combat . | . . Robot Hacks Applied . | . . Relay Couplers Released . | . . Robots Rewired . | . . Allies Hacked . | . . Hacks Repelled . | . . Allies | -11 -10 -------- Run | Scr Mat Total Allies . | . . Largest Group . | . . Highest-Rated Group . | . . Highest-Rated Ally . | . . Total Orders . | . . Ally Attacks . | . . Total Damage . | . . Kills . | . . Allies Corrupted . | . . Allies Melted . | . . Intel | -11 -10 ------- Run | Scr Mat Robot Analysis Total . | . . Derelict Logs Recovered . | . . Drone Launches . | . . Drone Recoveries . | . . Exploration | -11 -10 ------------- Run | Scr Mat Turns Passed 330 | 16 314 Spaces Moved 266 | 32 234 Core 216 | 32 184 Treads 34 | . 34 Legs 16 | . 16 Wheels . | . . Hover . | . . Flight . | . . Fastest Speed 50 | 50 50 Average Speed 76 | 50 80 Slowest Speed 250 | 50 250 Overloaded Moves . | . . Propulsion Burnouts . | . . Robots Hopped . | . . Cave-ins Triggered . | . . Exploration Rate (%) 18 | 4 33 Regions Visited 1 Branch Regions . Pre-discovered Areas . | . . Known Exits Taken . | . . Unknown Exits Taken 1 | 1 . Scrap Searched . | . . Spaces Dug . | . . Terrain Destroyed . | . . Melee . | . . Projectile . | . . AOE . | . . Terrain Rammed . | . . Walls Destroyed . | . . Machines Disabled . | . . Actions | -11 -10 --------- Run | Scr Mat Total 374 | 31 343 Wait 26 | . 26 Move 265 | 31 234 Hop . | . . Pick Up 13 | . 13 Fast Attach . | . . Attach 9 | . 9 Detach 1 | . 1 Swap . | . . Drop 1 | . 1 Fire 13 | . 13 Melee . | . . Ram 45 | . 45 Kick . | . . Crush 1 | . 1 Escape Stasis . | . . Rewire . | . . Trap . | . . Miscellaneous . | . . Route ------- -11/Scrapyard -10/Materials (discovered 2 exits: [*Min x2]) History --------- Turn | Location | Event 7 | -11/Scrapyard | Discovered new exit (range 15) 17 | -11/Scrapyard | Entered Materials 51 | -10/Materials | Discovered new exit (range 11) 72 | -10/Materials | Discovered new exit (range 8) 205 | -10/Materials | Core integrity fell below 50% 213 | -10/Materials | Core integrity fell below 20% 271 | -10/Materials | Lost 4 parts (2n1u1w) 320 | -10/Materials | Build established: Mutant 331 | -10/Materials | Destroyed by S-10 Pest with Light Assault Rifle Last Messages --------------- 00253_ G-34 Mercenary destroyed. 00254_ Acquired 8 matter. 00255_ K-01 Serf collects debris. 00257_ R-06 Scavenger collects Heat Sink. 00259_ K-01 Serf collects debris. 00274_ W-16 Scout sends out distress signal. 00276_ K-01 Serf collects debris. 00276_ Acquired Imp. Ion Engine. 00278_ Acquired 2 matter. 00283_ G-34 Mercenary destroyed. 00284_ Acquired 8 matter. 00286_ K-01 Serf collects debris. 00294_ Acquired Particle Cannon. 00297_ K-01 Serf collects debris. 00298_ Acquired Aluminum Leg. 00300_ Acquired 10 matter. 00309_ Acquired Aluminum Leg. 00314_ System corrupted: Matter fused (-5). 00324_ W-16 Scout sends out distress signal. 00330_ S-10 Pest destroyed. Map ----- +----------------------------------------------------+ | ????????????????????????????????????? | | ????????????????????????????????????? | | ????????????????????????????????????? | | ????????????????????????????????????? | | ????????????????????????????????????? | | ????????????????????????????????????? | | ????????????????????????????????????? | | ????????????????????????????????????? | | ????????????????????????????????????? | | ????????????????????????????????????? | | ????????????????????????????????????? | | ????????????????????????????????????? | | ????????????????????????????????????? | | ????????????????????????????????????? | | ????????????????????????????????????? | | ????????????????????????????????????? | | ????????????????????????????????????? | | ???????????????????? ??######???????? | | ???????????????????# ??# ? ???? | | ???????????????????? ??# ???? | | ???????????????????? ?# ! ????? | | ???????????????????? ?# ????? | | ????????????????????? ?+ """ """????? | | ????????????????????? # """ """ #??? | | ?????????????????????# # """ """ #??? | | ?????????????????????# #[@ #??? | | ?????????????????????# #s#######????? | | ?????????????????????# *%#??????????? | | ?????????????????????# #??????????? | | ?????????????????????# #??????????? | | ?????????????????????### #??????????? | | ???????????????????????# #??????????? | | ???????????????????????# #?#####????? | | ####???????????????????# #?#%!!#????? | | !""#???????????????????# #?#%!!#????? | | !" #???#######?????????# ###% *#????? | | ##### #?????????#[*%%%%*#????? | | * #?#########%%%%%% #????? | | % #?#[[!!//##^^%%% #????? | | % #?#[[!!//##%%[#####????? | | ##### #?# ## ##???????? | | ####???## #### ! # #???????? | | ????????# #?# %%= % #???????? | | ????????# #?# % T #???????? | | ????????# #?# #???????? | | ???????## ### %%##### #???????? | | ???????# ## #???#######???????? | | ???????# #?????????????????? | | ???????# #?????????????????? | | ???????# #?????????????????? | +----------------------------------------------------+ Best States ------------- Heat Dissipation 25 Energy Generation 12 Energy Capacity 265 Matter Stores 300 Matter Capacity 300 Sight Range 16 Terrain Scan Density 10 Additional Mass Support 6 Evasion (%) 50 Recoil Reduction 2 Item Schematics ----------------- None Robot Schematics ------------------ None Fabricated ------------ Nothing Alien Tech Used ----------------- None Achievements -------------- Fist Fight Loot Pinata Challenges ------------ None Game ------ Seed SubatomicCentriumBattery Manual? 0 Play Time 00:21:28 Cumulative 0.9 hours Start 2020.09.15 @ 20:55:03 End 2020.09.16 @ 22:30:46 Sessions 3 Manual Loads 0 Difficulty Rogue Special Mode None Game No. 3 Rogue 3 Adventurer 0 Explorer 0 Win Type - Total 0 Types 0/0/0/0/0/0/0/0/0 Lore% 0 Gallery% 1 Achievement% 2 Wizard Run 0 Options --------- ASCII 0 Keyboard 0 Movement Numpad Keybinds 0 Fullscreen 1 Font 24/Crisp Map View 76x50 Tactical HUD 1 Map Filters NONE Filters NONE Steam 1 RUN: 9d86730b-cea3-4b01-a8c0-794c89c75ffb